bitfinex-derivatives/quotes_ETHF0:USTF0_20250621
["timestamp","ask_amount","ask_price","bid_price","bid_amount"]
[1750546063633,3.2078,2286.9,2286.4,0.3498473]
[1750546063827,1.32453785,2286.8,2286.3,0.6953]
[1750546064026,3.2078,2286.9,2286.3,0.6953]
[1750546064027,3.2078,2286.9,2286.5,3.2078]
[1750546064332,3.2078,2286.9,2286.6,9.9314]
[1750546064721,3.2078,2286.9,2286.3,0.6953]
[1750546064921,2.72325528,2286.8,2286.3,0.6953]
[1750546065122,1.32375528,2286.7,2286.3,0.6953]
[1750546065322,5.93105528,2286.6,2285.9,1.4454]
[1750546065528,1.32375528,2286.5,2286.0,8.486]
[1750546065732,1.32375528,2286.4,2286.0,8.486]
[1750546066029,1.3995,2286.5,2286.0,8.486]
[1750546066231,1.32186537,2286.4,2286.0,8.486]
[1750546066438,1.3995,2286.5,2286.0,8.486]
[1750546066733,2.00154315,2286.4,2285.8,12.4221]
[1750546066928,1.3827,2286.3,2285.8,12.4221]
[1750546067420,4.5905,2286.3,2285.8,12.4221]
[1750546068434,3.2078,2286.3,2285.9,1.3532]
[1750546070830,3.2078,2286.4,2285.8,3.9371]
[1750546071039,3.2078,2286.1,2285.8,3.2078]
[1750546071234,3.2078,2286.1,2285.5,9.8369]
[1750546071429,0.7354,2286.3,2285.5,8.485]
[1750546071629,2.75397046,2286.2,2285.6,1.3519]
[1750546071938,1.4295,2286.2,2285.5,8.485]
[1750546072135,3.2078,2286.1,2285.5,8.485]
[1750546072437,1.4295,2286.0,2285.5,8.485]
[1750546072633,1.4295,2286.0,2285.5,11.6928]
[1750546073335,1.4295,2286.0,2285.5,3.2078]
[1750546073824,1.4295,2286.0,2285.5,4.6176]
[1750546074231,3.2078,2286.1,2285.5,13.22940466]
[1750546075834,0.7354,2286.3,2285.5,13.22940466]
[1750546076039,1.4331,2286.2,2285.6,8.486]
[1750546076733,1.4331,2286.2,2285.5,4.6176]
[1750546076932,3.2078,2286.1,2285.6,8.486]
[1750546077135,1.3737,2286.0,2285.6,8.486]
[1750546077640,3.2078,2286.1,2285.6,8.486]
[1750546077841,3.2078,2286.1,2285.6,9.8553]
[1750546078842,3.2078,2286.1,2285.6,8.486]
[1750546079139,1.3737,2286.0,2285.3,0.34171785]
[1750546079332,1.3737,2286.0,2285.4,8.486]
[1750546079935,1.3737,2286.0,2285.5,3.2078]
[1750546080238,1.3737,2286.0,2285.4,8.486]
[1750546080641,1.3737,2286.0,2285.2,13.89790466]
[1750546080830,3.2078,2285.8,2285.2,12.4028]
[1750546081035,1.456,2285.7,2285.2,12.4028]
[1750546081236,3.2078,2285.8,2285.2,12.4028]
[1750546081532,1.269,2285.9,2285.6,3.2078]
[1750546081934,3.2078,2286.1,2285.6,11.6558]
[1750546082132,3.2078,2286.1,2285.7,1.3551]
[1750546083036,3.2078,2286.1,2285.3,3.2078]
[1750546083245,3.2078,2286.1,2285.7,3.2078]
[1750546084139,3.2078,2286.1,2285.8,8.449]
[1750546084441,3.2078,2286.1,2285.8,9.8468]
[1750546084741,3.2078,2286.1,2285.4,3.2078]
[1750546084942,3.2078,2286.1,2285.5,9.8468]
[1750546085735,4.4768,2286.4,2285.7,3.2078]
[1750546085934,4.4768,2286.4,2285.8,1.3861]
[1750546086235,4.4768,2286.4,2285.9,9.1716]
[1750546086440,4.4768,2286.4,2285.9,17.02766181]
[1750546086737,4.4768,2286.4,2286.0,1.3861]
[1750546087336,1.269,2286.4,2286.1,3.2078]
[1750546087633,3.2078,2286.7,2286.2,9.24216181]
[1750546087833,3.2078,2286.7,2286.3,9.8351]
[1750546088036,3.2078,2286.7,2286.5,7.85606181]
[1750546088245,3.2078,2286.7,2286.6,2.0667]
[1750546088631,3.2078,2286.7,2286.3,8.449]
[1750546089146,3.2078,2286.7,2286.4,1.3441]
[1750546089635,3.2078,2287.0,2286.5,8.448]
[1750546089837,1.3858,2286.9,2286.3,8.448]
[1750546090040,2.1137,2286.9,2286.3,8.448]
[1750546090342,3.2078,2287.0,2286.4,7.85606181]
[1750546090540,3.2078,2287.0,2285.9,50.384]
[1750546090541,3.2078,2286.7,2285.9,50.384]
[1750546090740,3.2078,2286.4,2285.7,8.448]
[1750546090941,1.3858,2286.3,2285.7,8.448]
[1750546091238,3.2078,2286.1,2285.5,0.6878]
[1750546091434,1.4287,2286.0,2285.5,0.6878]
[1750546091636,0.7183,2285.9,2285.5,3.8956]
[1750546091836,0.7183,2285.9,2285.5,0.6878]
[1750546092136,1.4287,2285.8,2285.5,3.8956]
[1750546092336,0.7279,2286.0,2285.5,3.8956]
[1750546092546,0.7126,2286.4,2285.9,3.2078]
[1750546093742,0.7126,2286.4,2285.9,4.6725]
[1750546094547,3.9204,2286.4,2285.6,3.2078]
[1750546094848,1.435,2286.3,2285.6,11.6558]
[1750546095247,1.435,2286.3,2285.6,8.448]
[1750546095445,1.269,2286.2,2285.6,8.448]
[1750546095746,1.435,2286.1,2285.5,9.1358]
[1750546095948,2.1265,2286.1,2285.5,9.1358]
[1750546097143,2.1265,2286.1,2285.6,1.4227]
[1750546097348,2.1265,2286.1,2285.5,9.1358]
[1750546098343,0.6915,2286.1,2285.6,3.2078]
[1750546098552,1.269,2286.2,2285.7,1.4742]
[1750546098739,1.269,2286.2,2285.5,0.6878]
[1750546099046,1.4612,2286.1,2285.6,8.448]
[1750546099248,1.4612,2286.1,2285.5,0.6878]
[1750546099445,1.4612,2286.1,2285.6,8.448]
[1750546099849,1.269,2286.3,2285.7,3.2078]
[1750546100350,2.7302,2286.3,2285.7,3.2078]
[1750546100537,2.7302,2286.3,2285.6,9.9222]
[1750546100538,2.7302,2286.3,2285.5,0.6878]
[1750546100740,2.7302,2286.3,2285.6,8.448]
[1750546100941,2.7302,2286.3,2285.6,9.9284]
[1750546101153,2.7302,2286.3,2285.6,13.1362]
[1750546101545,2.7302,2286.3,2285.3,3.2078]
[1750546101546,3.2078,2286.1,2285.3,3.2078]
[1750546101748,1.4501,2286.0,2285.3,3.2078]
[1750546101938,3.2078,2286.1,2285.4,1.4804]
[1750546102146,3.2078,2286.1,2285.4,9.9294]
[1750546102345,1.4501,2286.0,2285.4,9.9294]
[1750546103148,3.2078,2285.8,2285.3,11.6568]
[1750546103346,1.4501,2285.7,2285.3,11.6568]
[1750546103850,1.4501,2285.7,2285.3,8.449]
[1750546104051,3.2078,2285.8,2285.3,9.8852]
[1750546106050,3.2078,2285.8,2285.4,29.242]
[1750546106353,3.2078,2285.8,2285.5,1.4362]
[1750546107252,1.269,2286.2,2285.5,1.4362]
[1750546107557,1.269,2286.2,2285.7,3.2078]
[1750546107757,1.269,2286.2,2285.8,2.1239]
[1750546108960,1.269,2286.2,2285.8,0.704]
[1750546109458,2.7011,2286.2,2285.8,0.704]
[1750546111957,2.7011,2286.2,2285.6,8.449]
[1750546112169,2.7011,2286.2,2285.4,12.48341592]
[1750546112170,3.2078,2285.9,2285.5,9.1167]
[1750546112555,3.2078,2285.9,2285.5,10.4554]
[1750546112860,3.2078,2285.9,2285.5,9.1167]
[1750546114354,1.4585,2285.8,2285.5,9.1167]
[1750546115460,1.4585,2285.8,2285.5,8.408]
[1750546115660,3.2078,2285.6,2285.2,60.1247]
[1750546115867,3.2078,2285.6,2285.2,9.7467]
[1750546116057,3.2078,2285.6,2285.2,8.408]
[1750546116263,1.444,2285.5,2285.1,0.6798]
[1750546116461,4.4768,2285.6,2285.1,0.6798]
[1750546117157,1.444,2285.5,2285.1,0.6798]
[1750546118862,3.2078,2285.3,2284.9,1.4536]
[1750546119070,2.713,2285.5,2285.1,3.2078]
[1750546119465,1.269,2285.5,2285.2,8.409]
[1750546119768,1.269,2285.5,2285.3,1.3978]
[1750546120361,1.269,2286.2,2285.4,7.85571592]
[1750546120556,4.4768,2286.6,2286.1,3.2078]
[1750546120760,3.2078,2286.6,2286.1,3.2078]
[1750546120960,3.2078,2286.6,2286.2,0.6827]
[1750546121160,4.5465,2286.6,2286.2,0.6827]
[1750546121567,3.2078,2286.6,2286.2,0.6827]
[1750546122067,3.2078,2286.6,2286.3,1.4277]
[1750546122265,3.2078,2286.6,2286.4,8.409]
[1750546122464,3.2078,2286.6,2286.5,1.4277]
[1750546122759,3.2078,2286.6,2286.2,0.6827]
[1750546123561,8.2078,2286.6,2285.8,8.408]
[1750546123762,3.2078,2286.3,2285.8,8.408]
[1750546123967,1.472,2286.2,2285.8,8.408]
[1750546124769,1.472,2286.2,2285.5,0.7184]
[1750546124969,3.2078,2286.0,2285.5,0.7184]
[1750546125263,1.4561,2285.9,2285.5,0.7184]
[1750546125864,2.902,2285.9,2285.5,0.7184]
[1750546126572,2.902,2285.9,2285.3,11.6158]
[1750546126770,2.902,2285.9,2285.2,0.7122]
[1750546126965,2.902,2285.9,2285.2,9.1202]
[1750546127168,2.902,2285.9,2285.3,3.2078]
[1750546127370,0.7239,2285.9,2285.6,3.2078]
[1750546127563,0.7239,2285.9,2285.3,4.6795]
[1750546127763,0.7239,2285.9,2285.2,9.1202]
[1750546127971,1.3702,2285.8,2285.3,3.2078]
[1750546128269,1.3702,2285.8,2285.3,4.6792]
[1750546128969,1.3702,2285.8,2285.3,3.2078]
[1750546129169,1.3702,2285.8,2285.2,16.97591592]
[1750546129372,1.3702,2285.8,2285.2,18.44731592]
[1750546129572,1.3702,2285.8,2285.3,3.2078]
[1750546131566,1.3702,2285.8,2285.2,9.1202]
[1750546131873,3.2078,2285.7,2285.2,0.7122]
[1750546132073,1.3351,2285.6,2285.2,0.7122]
[1750546132575,1.3351,2285.6,2285.0,11.6158]
[1750546133670,3.2078,2285.4,2285.0,11.6158]
[1750546133980,1.4769,2285.3,2285.0,11.6158]
[1750546134469,1.4769,2285.3,2285.0,3.2078]
[1750546136071,0.6841,2285.2,2284.8,0.731]
[1750546136272,1.4769,2285.1,2284.8,0.731]
[1750546137175,4.6847,2285.1,2284.6,3.2078]
[1750546137473,5.3987,2285.1,2284.6,3.2078]
[1750546138571,5.3987,2285.1,2284.3,7.85571592]
[1750546138572,1.269,2285.0,2284.3,3.2078]
[1750546138773,1.3893,2284.9,2284.3,3.2078]
[1750546140178,1.3893,2284.9,2284.4,1.4305]
[1750546140568,1.3893,2284.9,2284.3,3.2078]
[1750546141380,1.3893,2284.9,2284.3,4.6383]
[1750546145274,13.6008,2285.1,2284.3,4.6383]
[1750546145573,5.1908,2285.1,2284.6,3.2078]
[1750546145774,5.1908,2285.1,2284.7,0.7057]
[1750546145775,4.4768,2285.1,2284.7,0.7057]
[1750546145976,4.4768,2285.1,2284.7,2.0425]
[1750546146280,4.4768,2285.1,2284.8,7.85571592]
[1750546146480,3.2078,2285.1,2284.8,9.93321592]
[1750546146677,3.2078,2285.1,2284.8,2.0775]
[1750546147073,3.2078,2285.4,2284.9,3.2078]
[1750546147274,4.6277,2285.4,2284.9,3.2078]
[1750546147480,1.4199,2285.4,2284.9,4.5446]
[1750546148578,1.269,2285.5,2284.9,4.5446]
[1750546149178,4.568,2285.4,2284.9,3.2078]
[1750546150282,12.924,2285.4,2284.9,3.2078]
[1750546150583,12.924,2285.4,2284.7,0.7057]
[1750546150782,0.7112,2285.3,2284.7,0.7057]
[1750546150987,1.3602,2285.2,2284.7,0.7057]
[1750546151483,1.269,2285.5,2285.1,3.2078]
[1750546151687,4.4768,2286.1,2285.4,3.2078]
[1750546151982,1.269,2286.1,2285.7,3.2078]
[1750546152777,1.4428,2286.0,2285.5,2.039]
[1750546153081,1.269,2286.1,2285.7,3.2078]
[1750546153276,1.269,2286.1,2285.8,1.3429]
[1750546153477,11.06351592,2286.1,2285.5,0.6961]
[1750546153679,1.4428,2286.0,2285.5,0.6961]
[1750546155188,1.4428,2286.0,2285.6,3.2078]
[1750546155384,1.4428,2286.0,2285.5,0.6961]
[1750546155688,3.2078,2285.8,2285.5,0.6961]
[1750546155878,1.4096,2285.7,2285.5,0.6961]
[1750546156081,1.4096,2285.7,2285.3,3.2078]
[1750546156683,3.9029,2285.8,2285.3,3.2078]
[1750546156891,3.9029,2285.8,2285.3,4.565]
[1750546157687,1.269,2286.1,2285.6,3.2078]
[1750546157883,1.269,2286.1,2285.7,0.7094]
[1750546158282,1.3712,2286.0,2285.7,0.7094]
[1750546158681,0.703,2286.4,2285.9,3.2078]
[1750546158881,0.703,2286.4,2285.8,9.7204]
[1750546159293,3.2078,2286.2,2285.7,0.7094]
[1750546159492,1.3712,2286.1,2285.7,0.7094]
[1750546159789,1.3712,2286.1,2284.9,3.2078]
[1750546159790,3.2078,2285.9,2284.9,3.2078]
[1750546159985,9.12471592,2286.0,2284.9,0.7097]
[1750546159986,3.2078,2285.5,2284.9,0.7097]
[1750546160186,1.3712,2285.4,2284.9,3.9175]
[1750546160589,1.3712,2285.4,2284.4,8.59291592]
[1750546160590,3.2078,2285.2,2284.5,3.2078]
[1750546160785,3.2078,2284.9,2284.5,3.2078]
[1750546160984,1.3712,2284.8,2284.5,3.2078]
[1750546161286,1.3712,2284.8,2284.3,0.7097]
[1750546161594,3.2078,2284.6,2284.3,0.7097]
[1750546161793,1.4746,2284.5,2284.3,0.7097]
[1750546162987,3.2078,2284.6,2284.1,3.2078]
[1750546162988,11.5638,2284.6,2284.1,3.2078]
[1750546163196,3.2078,2284.3,2283.8,3.8997]
[1750546163392,9.8306,2284.6,2284.1,3.2078]
[1750546163588,9.8306,2284.6,2283.8,12.2557]
[1750546163792,0.6915,2284.5,2283.8,12.2557]
[1750546163994,1.4746,2284.4,2283.8,12.2557]
[1750546164589,4.6824,2284.4,2283.8,12.2557]
[1750546164991,20.89411592,2284.4,2283.5,0.6695]
[1750546165192,3.2078,2284.1,2283.5,0.7306]
[1750546165389,2.0905,2284.0,2283.5,0.7306]
[1750546166097,2.0905,2284.0,2283.4,3.2078]
[1750546166098,3.2078,2283.8,2283.4,3.2078]
[1750546166293,1.4008,2283.7,2283.4,3.2078]
[1750546166493,3.2078,2283.8,2283.2,8.356]
[1750546166697,0.6781,2283.9,2283.4,3.2078]
[1750546166996,3.2078,2284.4,2283.7,3.2078]
[1750546167301,11.5658,2284.7,2284.0,3.2078]
[1750546167501,1.4514,2284.6,2284.0,3.2078]
[1750546167992,1.4514,2284.6,2283.8,2.8019]
[1750546168798,3.2078,2284.4,2283.8,0.7306]
[1750546168990,3.2078,2284.1,2283.3,12.2762]
[1750546169196,3.2078,2284.1,2283.3,13.0088]
[1750546169396,1.4514,2284.3,2283.9,3.2078]
[1750546169697,1.4514,2284.3,2283.5,11.5658]
[1750546169902,0.7141,2284.2,2283.5,11.5658]
[1750546170103,1.4514,2284.1,2283.5,11.5658]
[1750546170604,1.4514,2284.1,2283.5,3.2078]
[1750546170802,1.4514,2284.1,2283.5,11.5658]
[1750546171802,3.2078,2284.5,2283.9,3.2078]
[1750546172001,3.2078,2284.5,2284.0,0.7086]
[1750546172308,1.4729,2284.4,2284.0,0.7086]
[1750546172700,3.2078,2284.5,2284.0,0.7086]
[1750546172900,3.2078,2284.5,2284.0,2.1217]
[1750546173905,3.2078,2284.5,2284.0,0.7086]
[1750546174104,1.4706,2284.4,2284.0,0.7086]
[1750546175506,1.4706,2284.4,2283.7,8.298]
[1750546175707,1.4706,2284.4,2283.7,9.0212]
[1750546177803,3.2078,2284.5,2283.9,3.2078]
[1750546178002,1.3443,2284.4,2283.9,3.2078]
[1750546178299,1.3443,2284.4,2283.8,1.3841]
[1750546178706,1.3443,2284.4,2283.7,9.0212]
[1750546179113,1.3443,2284.4,2283.7,2.1073]
[1750546179409,3.2078,2284.2,2283.6,3.2078]
[1750546179802,1.4499,2284.1,2283.4,2.1588]
[1750546180101,1.269,2284.0,2283.4,2.1588]
[1750546180510,2.7189,2284.0,2283.4,2.1588]
[1750546180709,1.269,2284.0,2283.6,3.2078]
[1750546180909,1.269,2284.0,2283.7,1.4474]
[1750546181112,1.269,2284.0,2283.4,0.7114]
[1750546181409,2.7189,2284.0,2283.5,1.4474]
[1750546181609,2.7189,2284.0,2283.4,0.7114]
[1750546181814,2.7189,2284.0,2283.4,2.1588]
[1750546183104,3.2078,2283.9,2283.4,2.1588]
[1750546183811,3.2078,2283.9,2283.4,5.3666]
[1750546184606,3.2078,2283.9,2283.4,2.1588]
[1750546184807,1.408,2283.8,2283.4,2.1588]
[1750546185511,1.408,2283.8,2283.4,0.7114]
[1750546185710,1.408,2283.8,2283.3,8.299]
[1750546186409,1.408,2283.8,2283.3,9.6738]
[1750546187409,3.2078,2283.6,2283.3,8.299]
[1750546187909,3.2078,2283.6,2283.2,0.6863]
[1750546188311,0.7268,2283.5,2282.9,0.7166]
[1750546188512,1.269,2283.7,2283.0,2.0435]
[1750546188713,4.6036,2283.6,2283.0,2.0435]
[1750546189014,1.3958,2283.6,2283.1,3.2078]
[1750546189214,0.7268,2284.0,2283.4,3.2078]
[1750546189617,0.7268,2284.0,2283.5,1.3484]
[1750546189815,0.7268,2284.0,2283.6,0.6788]
[1750546190614,3.2078,2283.9,2283.6,0.6788]
[1750546190807,4.6036,2283.9,2283.6,0.6788]
[1750546191513,4.6036,2283.9,2283.2,8.3]
[1750546191710,4.6036,2283.9,2283.3,0.6788]
[1750546192419,3.2078,2283.9,2283.3,0.6788]
[1750546192623,4.561,2283.9,2283.3,0.6788]
[1750546193320,9.569,2283.8,2283.3,0.6788]
[1750546193520,3.2078,2283.6,2283.0,1.4179]
[1750546193711,2.0546,2283.5,2283.0,0.6982]
[1750546194007,0.7014,2283.5,2283.0,0.6982]
[1750546194214,1.269,2283.6,2283.1,4.6257]
[1750546194616,4.4768,2283.6,2283.1,4.6257]
[1750546194824,5.9333,2283.6,2283.1,1.4179]
[1750546195025,5.9333,2283.6,2283.1,4.6257]
[1750546197924,5.9333,2283.6,2283.1,1.4179]
[1750546198124,5.9333,2283.6,2283.0,0.6982]
[1750546199725,5.9333,2283.6,2282.6,8.301]
[1750546199726,3.2078,2283.3,2282.6,8.301]
[1750546200032,1.269,2283.2,2282.8,3.9461]
[1750546200730,1.269,2283.2,2282.8,0.7383]
[1750546201220,1.269,2283.2,2282.9,3.2078]
[1750546201420,1.269,2283.2,2283.0,8.301]
[1750546201828,0.6954,2283.8,2283.1,7.8730225]
[1750546202131,14.8237,2283.9,2283.1,7.8730225]
[1750546202132,14.8237,2283.9,2283.4,3.2078]
[1750546202318,14.8237,2283.9,2283.1,11.7616225]
[1750546202525,14.8237,2283.9,2283.1,3.8886]
[1750546203022,6.5227,2283.9,2283.1,3.8886]
[1750546203723,5.1506,2283.9,2283.1,11.7616225]
[1750546203922,3.2078,2284.3,2283.7,11.0808225]
[1750546204121,3.2078,2284.6,2284.0,3.2078]
[1750546204532,4.5665,2284.6,2284.0,3.2078]
[1750546204729,3.2078,2284.6,2284.0,3.2078]
[1750546205734,3.2078,2284.6,2284.0,11.0808225]
[1750546205925,3.2078,2284.6,2284.1,1.3849]
[1750546206118,3.2078,2284.6,2284.2,8.245]
[1750546206631,3.2078,2284.6,2283.9,8.245]
[1750546206632,2.0421,2284.5,2283.9,8.245]
[1750546207024,2.0421,2284.5,2283.9,9.646]
[1750546207426,2.0421,2284.5,2283.9,8.245]
[1750546208326,2.0421,2284.5,2283.9,9.646]
[1750546209223,3.2078,2284.6,2284.2,3.2078]
[1750546209627,3.2078,2284.6,2284.3,1.401]
[1750546209832,3.2078,2284.6,2284.4,0.6942]
[1750546210435,3.2078,2284.6,2283.9,3.2078]
[1750546210631,1.3563,2284.5,2284.0,8.9555]
[1750546211133,1.3563,2284.5,2284.0,10.4239]
[1750546211332,1.269,2284.4,2284.0,8.9555]
[1750546212228,1.269,2284.4,2284.0,10.4239]
[1750546214433,3.2078,2284.6,2284.0,10.4239]
[1750546214634,3.2078,2284.6,2284.2,3.2078]
[1750546214834,3.2078,2284.6,2284.0,10.4239]
[1750546215022,4.663,2284.6,2284.0,10.4239]
[1750546215226,4.663,2284.6,2284.0,2.1799]
[1750546215426,4.663,2284.6,2284.1,8.243]
[1750546216233,3.2078,2284.6,2284.2,3.2078]
[1750546216436,3.2078,2284.6,2284.3,1.4628]
[1750546216638,3.2078,2284.6,2284.3,10.0458225]
[1750546216936,3.2078,2284.6,2284.3,15.0458225]
[1750546217136,4.4768,2285.0,2284.3,15.39604794]
[1750546217323,3.2078,2285.0,2284.3,10.39604794]
[1750546217835,3.2078,2285.0,2284.6,11.0808225]
[1750546218031,3.2078,2285.0,2284.7,10.4183]
[1750546218222,3.2078,2285.0,2284.8,1.4628]
[1750546218836,2.1156,2285.4,2284.9,3.2078]
[1750546219036,1.4244,2285.4,2284.7,0.7125]
[1750546219229,3.9232,2285.5,2284.7,8.9545]
[1750546219429,5.276,2285.5,2284.8,1.4729]
[1750546219729,3.9232,2285.5,2284.9,3.2078]
[1750546219929,3.9232,2285.5,2285.0,1.4729]
[1750546220837,3.9232,2285.5,2284.9,3.2078]
[1750546221036,1.3528,2285.4,2284.9,3.2078]
[1750546221332,3.9232,2285.5,2284.9,3.2078]
[1750546221538,5.276,2285.5,2284.9,3.2078]
[1750546221833,3.9232,2285.5,2284.9,3.2078]
[1750546222034,3.9232,2285.5,2284.8,0.7377]
[1750546222338,1.4486,2285.4,2284.9,8.242]
[1750546222534,1.4486,2285.4,2284.9,8.68144841]
[1750546222829,1.4486,2285.4,2284.9,8.242]
[1750546223638,3.2078,2285.5,2284.9,19.3228225]
[1750546223833,3.2078,2285.5,2285.0,2.158]
[1750546224236,1.269,2285.7,2285.4,3.2078]
[1750546224435,0.7413,2285.8,2285.4,3.2078]
[1750546224630,3.2078,2286.0,2285.5,9.9952225]
[1750546224831,3.2078,2286.4,2285.9,3.2078]
[1750546225031,3.2078,2286.7,2286.1,7.8730225]
[1750546225239,3.2078,2286.7,2286.2,2.1155]
[1750546225534,3.2078,2286.7,2286.3,1.4352]
[1750546225738,3.2078,2286.7,2286.4,8.241]
[1750546225953,3.2078,2286.7,2286.5,1.4352]
[1750546226142,3.2078,2287.0,2286.5,1.4352]
[1750546226341,3.2078,2287.0,2286.8,7.8730225]
[1750546226645,3.2078,2287.4,2286.9,1.4352]
[1750546226932,3.2078,2287.9,2287.2,3.2078]
[1750546227132,1.4374,2287.8,2287.3,9.6762]
[1750546227336,3.2078,2287.9,2287.3,9.6762]
[1750546227731,3.2078,2287.9,2287.3,10.11068043]
[1750546228134,3.2078,2288.2,2287.6,3.2078]
[1750546228333,1.4169,2288.6,2288.0,3.2078]
[1750546228532,3.2078,2288.7,2288.3,3.2078]
[1750546228942,1.4169,2288.9,2288.4,8.238]
[1750546229342,3.2078,2289.1,2288.4,8.238]
[1750546229542,4.6247,2289.1,2288.5,1.3504]
[1750546230039,4.6247,2289.1,2288.1,8.238]
[1750546230239,4.6247,2289.1,2288.3,3.2078]
[1750546230839,3.2078,2288.7,2287.9,0.7072]
[1750546231044,3.2078,2288.4,2288.0,8.235]
[1750546231246,1.3458,2288.3,2288.0,8.235]
[1750546231751,3.2078,2288.4,2288.0,8.235]
[1750546232051,3.2078,2288.4,2288.0,12.8446]
[1750546233240,1.3458,2288.8,2288.3,3.2078]
[1750546233441,0.06847599,2288.7,2288.4,9.6348]
[1750546234548,5.2276,2289.5,2288.6,3.2078]
[1750546234939,3.2078,2289.2,2288.6,11.3868]
[1750546235238,1.4449,2289.1,2288.6,11.3868]
[1750546235444,3.2078,2289.2,2288.3,3.2078]
[1750546235646,1.4449,2289.0,2288.4,8.179]
[1750546235843,1.4449,2289.0,2288.4,9.6203]
[1750546236149,3.2078,2289.2,2288.9,3.2078]
[1750546236349,3.2078,2289.2,2288.8,8.177]
[1750546236649,3.2078,2289.2,2288.9,3.2078]
[1750546237147,3.2078,2289.2,2288.9,1.4413]
[1750546237853,3.2078,2290.1,2289.1,8.55395328]
[1750546238053,3.2078,2290.1,2289.7,3.2078]
[1750546238350,3.2078,2290.1,2289.8,8.177]
[1750546238748,4.5948,2290.1,2289.7,8.177]
[1750546238947,3.2078,2290.1,2289.5,3.56231018]
[1750546239245,3.2078,2290.1,2289.6,3.2078]
[1750546239446,3.2078,2290.1,2289.6,5.3995]
[1750546239648,3.27627599,2290.1,2289.6,5.3995]
[1750546239850,3.27627599,2290.1,2289.6,5.83151173]
[1750546240043,0.06847599,2290.1,2289.9,3.2078]
[1750546240239,0.06847599,2290.1,2290.0,9.651]
[1750546240654,3.2078,2290.7,2290.0,9.651]
[1750546241148,1.4435,2290.6,2290.2,3.2078]
[1750546241349,1.4435,2290.6,2290.0,9.651]
[1750546241744,1.4435,2290.6,2290.2,3.2078]
[1750546242542,3.27627599,2291.0,2290.3,8.171]
[1750546243052,1.4435,2290.9,2290.3,8.171]
[1750546243555,1.4435,2290.9,2290.3,12.7924]
[1750546244051,3.2078,2291.0,2290.3,21.34635328]
[1750546244246,3.2078,2291.0,2290.4,36.968]
[1750546244450,3.2078,2291.3,2290.6,3.2078]
[1750546245050,1.4018,2291.2,2290.4,10.2514]
[1750546245751,3.2078,2290.7,2290.0,53.5258]
[1750546245962,1.4018,2290.6,2290.0,3.2078]
[1750546246450,1.4018,2290.6,2289.7,1.4136]
[1750546246451,1.4018,2290.6,2289.7,3.2078]
[1750546246654,3.2078,2290.1,2289.3,0.43904013]
[1750546246958,3.2078,2289.8,2289.2,8.169]
[1750546247567,1.3605,2289.7,2289.2,8.169]
[1750546248254,1.3605,2289.7,2289.1,3.2078]
[1750546248456,1.3605,2289.7,2289.1,11.3768]
[1750546248964,3.2078,2289.8,2289.1,20.36385867]
[1750546249154,1.4385,2290.0,2289.7,3.2078]
[1750546249458,8.169,2290.4,2289.7,3.2078]
[1750546249647,1.381,2290.3,2289.7,3.2078]
[1750546249846,1.381,2290.3,2289.7,4.6169]
[1750546250152,1.381,2290.3,2289.7,5.3114]
[1750546251262,1.381,2290.3,2289.7,8.8635]
[1750546251464,3.2078,2290.2,2289.7,8.8635]
[1750546251658,1.381,2290.1,2289.7,8.8635]
[1750546252264,1.381,2290.1,2289.7,12.0713]
[1750546253565,1.381,2290.1,2289.7,3.9023]
[1750546254354,3.2078,2290.5,2289.7,59.2023]
[1750546254567,3.2078,2291.1,2290.4,3.2078]
[1750546254756,1.3399,2291.0,2290.4,3.2078]
[1750546254955,1.3399,2291.0,2290.1,41.5539]
[1750546255163,0.7271,2290.9,2290.1,41.5539]
[1750546255364,1.3399,2290.8,2290.1,41.5539]
[1750546255662,3.2078,2290.6,2290.1,3.2078]
[1750546255964,0.06847599,2290.4,2290.1,3.2078]
[1750546256564,0.06847599,2290.4,2290.2,1.3989]
[1750546257072,0.06847599,2290.4,2290.1,40.1428]
[1750546257561,0.06847599,2290.4,2290.1,3.2078]
[1750546258162,0.06847599,2290.4,2290.1,4.6067]
[1750546259372,0.06847599,2290.4,2290.1,33.3687]
[1750546260467,0.06847599,2290.4,2289.7,0.6945]
[1750546260660,1.3881,2290.3,2289.7,32.6623]
[1750546260971,1.3881,2290.3,2289.7,34.136]
[1750546261165,1.3881,2290.3,2289.8,28.756]
[1750546261466,1.3881,2290.3,2290.0,3.2078]
[1750546261662,0.06847599,2290.4,2290.0,3.2078]
[1750546262166,0.06847599,2290.4,2289.9,28.755]
[1750546262362,2.70954881,2290.3,2289.7,0.6945]
[1750546262561,1.30169435,2290.2,2289.7,0.6945]
[1750546262762,1.408,2290.1,2289.7,3.9023]
[1750546263072,3.2078,2290.3,2289.7,5.2715]
[1750546263262,1.30279788,2290.2,2289.8,1.3692]
[1750546263464,3.2078,2290.3,2289.8,1.3692]
[1750546263662,1.30299787,2290.2,2289.8,1.3692]
[1750546263963,3.2078,2290.3,2290.0,3.2078]
[1750546264162,0.06847599,2290.4,2290.1,38.2882]
[1750546264964,3.2078,2290.7,2290.1,38.2882]
[1750546265163,3.2078,2290.8,2290.2,40.0928]